bitfinex-derivatives/quotes_SOLF0:USTF0_20250404
["timestamp","ask_amount","ask_price","bid_price","bid_amount"]
[1743771857720,0.05693608,116.49,116.46,0.06593087]
[1743771859222,39.56877766,116.57,116.47,30.55997766]
[1743771859415,30.55997766,116.55,116.48,41.62]
[1743771859617,30.55997766,116.53,116.48,41.62]
[1743771859819,41.62,116.55,116.48,41.62]
[1743771860019,8.5856,116.5,116.48,41.62]
[1743771860322,4.339,116.56,116.48,41.62]
[1743771860515,8.5837,116.53,116.49,8.5859]
[1743771860714,0.06536035,116.53,116.51,0.06558395]
[1743771861724,0.06536035,116.53,116.52,8.5837]
[1743771861923,0.06536035,116.53,116.52,41.62]
[1743771862224,0.06536035,116.53,116.52,50.2037]
[1743771862625,30.55997766,116.6,116.52,41.62]
[1743771862928,4.4562,116.58,116.52,41.62]
[1743771863326,8.5819,116.55,116.52,41.62]
[1743771863624,0.06415075,116.55,116.52,41.6790912]
[1743771863924,8.583,116.53,116.52,0.0590912]
[1743771864823,0.06415075,116.55,116.52,41.6790912]
[1743771866022,8.64615075,116.55,116.52,41.6790912]
[1743771866226,8.64615075,116.55,116.52,50.2627912]
[1743771866625,8.5823,116.54,116.52,41.6790912]
[1743771867524,8.583,116.53,116.52,41.6790912]
[1743771868431,0.06415075,116.55,116.52,41.6790912]
[1743771868625,0.06415075,116.55,116.53,8.5823]
[1743771868826,308.96,116.64,116.52,72.23906886]
[1743771869025,30.55997766,116.64,116.54,30.55997766]
[1743771869223,94.19975639,116.7,116.58,30.55997766]
[1743771869423,91.40035584,116.69,116.59,41.6]
[1743771869623,60.84037818,116.69,116.59,41.6]
[1743771869824,91.40035584,116.69,116.59,41.6]
[1743771870028,0.06260771,116.65,116.63,0.06105009]
[1743771870327,0.06260771,116.65,116.63,41.66105009]
[1743771870627,8.5749,116.64,116.63,0.06105009]
[1743771870926,30.62258537,116.65,116.6,41.6]
[1743771871124,30.55997766,116.65,116.6,41.6]
[1743771871326,30.55997766,116.63,116.57,41.6]
[1743771871620,8.5782,116.6,116.57,41.6]
[1743771871828,8.7649,116.62,116.57,41.6]
[1743771872126,0.05724032,116.61,116.58,0.05467037]
[1743771872427,8.5786,116.59,116.58,0.05467037]
[1743771872624,0.05724032,116.61,116.58,0.05467037]
[1743771873027,8.5783,116.6,116.58,0.05467037]
[1743771873532,0.05724032,116.61,116.58,0.05467037]
[1743771874330,8.5778,116.6,116.58,0.05467037]
[1743771874527,0.05724032,116.61,116.58,0.05467037]
[1743771874830,8.5786,116.59,116.58,0.05467037]
[1743771875134,0.05724032,116.61,116.58,0.05467037]
[1743771875930,0.05724032,116.61,116.58,49.6267015]
[1743771876233,0.05724032,116.61,116.58,0.05467037]
[1743771876437,8.5783,116.6,116.58,0.05467037]
[1743771876634,0.05724032,116.61,116.58,0.05467037]
[1743771877031,8.63494032,116.61,116.58,0.05467037]
[1743771877231,0.05724032,116.61,116.58,0.05467037]
[1743771878136,8.63454032,116.61,116.58,0.05467037]
[1743771878342,0.05724032,116.61,116.58,0.05467037]
[1743771879141,8.5783,116.6,116.59,41.58]
[1743771879734,8.63444032,116.61,116.59,41.58]
[1743771879935,0.05724032,116.61,116.59,41.58]
[1743771880537,0.05724032,116.61,116.59,50.1582]
[1743771880936,0.05724032,116.61,116.58,49.6267015]
[1743771880937,0.05724032,116.61,116.58,58.2056015]
[1743771881135,0.05724032,116.61,116.59,41.58]
[1743771881531,0.05724032,116.61,116.6,41.58]
[1743771882136,0.05724032,116.61,116.6,50.1578]
[1743771882341,0.05724032,116.61,116.58,0.05467037]
[1743771882542,0.05724032,116.61,116.59,41.58]
[1743771883237,8.5778,116.6,116.59,41.58]
[1743771883941,49.62927145,116.61,116.54,41.58]
[1743771884237,350.26,116.64,116.51,4.5451]
[1743771884238,13.5105,116.6,116.51,4.5451]
[1743771884441,4.4602,116.6,116.53,49.57203113]
[1743771884639,58.62233113,116.63,116.54,1.71614896]
[1743771884840,8.5784,116.6,116.54,1.71614896]
[1743771885040,8.63763746,116.6,116.57,0.05986039]
[1743771885239,0.05923746,116.6,116.58,41.58]
[1743771885444,9.3755,116.66,116.58,41.58]
[1743771885643,49.57203113,116.64,116.58,41.58]
[1743771886142,49.57203113,116.62,116.56,8.5807]
[1743771886440,4.4276,116.63,116.58,0.06403709]
[1743771886740,8.5789,116.59,116.58,0.06403709]
[1743771886947,0.06279595,116.6,116.58,0.06403709]
[1743771887140,8.5786,116.59,116.58,0.06403709]
[1743771888446,8.64099595,116.6,116.58,0.06403709]
[1743771888644,0.06279595,116.6,116.58,0.06403709]
[1743771888850,0.06279595,116.6,116.59,50.1586]
[1743771889147,0.06279595,116.6,116.59,41.58]
[1743771889540,8.64059595,116.6,116.59,41.58]
[1743771891643,8.5786,116.59,116.58,0.06403709]
[1743771892746,0.06279595,116.6,116.56,41.58]
[1743771892950,4.6782,116.59,116.54,41.58]
[1743771893363,8.5812,116.56,116.54,50.1621]
[1743771893656,9.2869,116.59,116.53,41.56]
[1743771893853,9.2869,116.59,116.51,4.5451]
[1743771893854,9.2869,116.59,116.52,50.1434]
[1743771894053,0.05693786,116.57,116.55,0.05588577]
[1743771894459,8.5808,116.56,116.55,0.05588577]
[1743771894856,8.5847,116.51,116.5,41.58]
[1743771895058,30.53026795,116.54,116.45,39.79566795]
[1743771895259,9.0817,116.53,116.46,41.58]
[1743771895460,8.5855,116.5,116.47,8.5869]
[1743771895762,9.0817,116.53,116.45,39.79566795]
[1743771896056,0.05546091,116.5,116.47,0.05445542]
[1743771896358,0.05546091,116.5,116.47,41.63445542]
[1743771896558,8.5867,116.48,116.47,41.63445542]
[1743771896750,0.05546091,116.5,116.47,41.63445542]
[1743771897149,0.05546091,116.5,116.48,8.586]
[1743771897352,0.05546091,116.5,116.47,41.63445542]
[1743771898153,8.64106091,116.5,116.47,41.63445542]
[1743771898350,0.05546091,116.5,116.47,41.63445542]
[1743771898662,0.05546091,116.5,116.48,8.5862]
[1743771898862,0.05546091,116.5,116.47,41.63445542]
[1743771899360,8.5863,116.49,116.47,41.63445542]
[1743771899562,0.05546091,116.5,116.47,41.63445542]
[1743771899762,8.5863,116.49,116.47,41.63445542]
[1743771900357,0.05546091,116.5,116.47,41.63445542]
[1743771900566,0.05546091,116.5,116.47,72.16472337]
[1743771900957,47.68536795,116.61,116.49,30.53026795]
[1743771901261,13.5554,116.6,116.51,30.53026795]
[1743771901465,13.5554,116.6,116.52,41.58]
[1743771901964,8.583,116.53,116.52,41.58]
[1743771902362,30.53026795,116.59,116.52,41.58]
[1743771902963,0.06054483,116.57,116.54,0.05608671]
[1743771903164,8.5815,116.55,116.54,0.05608671]
[1743771903361,30.59081278,116.57,116.49,41.58]
[1743771903566,8.5852,116.5,116.49,41.58]
[1743771903864,30.53026795,116.53,116.46,41.58]
[1743771904061,9.0282,116.54,116.46,41.58]
[1743771904464,0.05500309,116.51,116.49,0.05466652]
[1743771904863,0.05500309,116.51,116.5,41.58]
[1743771905064,0.05500309,116.51,116.49,0.05466652]
[1743771905263,8.5852,116.5,116.49,0.05466652]
[1743771905668,8.63980309,116.51,116.49,0.05466652]
[1743771906062,0.05500309,116.51,116.49,0.05466652]
[1743771906262,8.5852,116.5,116.49,0.05466652]
[1743771906566,0.05500309,116.51,116.47,41.58]
[1743771906767,8.5863,116.49,116.47,41.58]
[1743771906963,0.05500309,116.51,116.44,4.408]
[1743771907169,30.53026795,116.52,116.46,41.58]
[1743771907466,30.53026795,116.52,116.44,45.988]
[1743771907666,0.06311605,116.5,116.48,0.06291513]
[1743771907866,8.64861605,116.5,116.48,0.06291513]
[1743771908067,0.06311605,116.5,116.48,0.06291513]
[1743771909662,0.06311605,116.5,116.49,8.5859]
[1743771909968,0.06311605,116.5,116.48,41.64291513]
[1743771911667,0.06311605,116.5,116.49,8.5859]
[1743771911970,30.53026795,116.6,116.49,30.53026795]
[1743771912167,4.6986,116.59,116.51,30.53026795]
[1743771912470,4.6986,116.59,116.52,41.58]
[1743771912671,8.5811,116.56,116.53,8.5826]
[1743771912870,4.6986,116.59,116.53,8.5826]
[1743771913073,0.06266766,116.56,116.53,0.05899577]
[1743771914775,8.64376766,116.56,116.53,8.64169577]
[1743771915072,8.64376766,116.56,116.53,0.05899577]
[1743771915373,8.64376766,116.56,116.53,8.64169577]
[1743771915869,8.5816,116.55,116.53,0.05899577]
[1743771916074,0.06266766,116.56,116.53,0.05899577]
[1743771917069,0.06266766,116.56,116.53,30.58926372]
[1743771917673,0.06266766,116.56,116.55,8.5815]
[1743771918474,0.06266766,116.56,116.53,30.58926372]
[1743771918775,0.06266766,116.56,116.53,0.05899577]
[1743771919070,8.5847,116.51,116.46,44.41516795]
[1743771919273,8.9313,116.55,116.48,41.56]
[1743771919477,8.9313,116.55,116.48,50.1461]
[1743771919673,8.5843,116.52,116.48,41.56]
[1743771919868,8.9313,116.55,116.48,41.56]
[1743771920070,4.6612,116.57,116.48,72.09026795]
[1743771920378,0.06122472,116.53,116.5,0.06571689]
[1743771920574,0.06122472,116.53,116.5,8.5845]
[1743771920768,8.64432472,116.53,116.5,8.63979125]
[1743771921179,0.06122472,116.53,116.51,8.5843]
[1743771921381,0.06122472,116.53,116.5,0.05529125]
[1743771922073,8.584,116.52,116.5,0.05529125]
[1743771922272,0.06122472,116.53,116.5,0.05529125]
[1743771922673,8.5844,116.51,116.5,0.05529125]
[1743771923279,8.5871,116.48,116.46,41.56]
[1743771923481,34.85526795,116.52,116.43,13.556]
[1743771923674,8.5863,116.49,116.43,55.116]
[1743771923874,34.85526795,116.52,116.43,55.116]
[1743771924175,34.85526795,116.52,116.43,9.0524]
[1743771924374,0.05507929,116.49,116.46,0.05703118]
[1743771924582,30.53026795,116.48,116.41,235.49939099]
[1743771924769,30.53026795,116.48,116.4,41.56]
[1743771924971,30.53026795,116.46,116.4,41.56]
[1743771925481,30.53026795,116.48,116.4,41.56]
[1743771925780,0.06466375,116.44,116.42,0.05568777]
[1743771926579,0.06466375,116.44,116.42,8.64648777]
[1743771926782,0.06466375,116.44,116.42,0.05568777]
[1743771927182,0.06466375,116.44,116.43,8.5903]
[1743771927377,0.06466375,116.44,116.42,0.05568777]
[1743771927879,0.06466375,116.44,116.43,8.5903]
[1743771928383,0.06466375,116.44,116.42,0.05568777]
[1743771929285,8.65466375,116.44,116.42,0.05568777]
[1743771929879,0.06466375,116.44,116.42,0.05568777]
[1743771930981,0.06466375,116.44,116.42,8.64638777]
[1743771931182,0.06466375,116.44,116.42,0.05568777]
[1743771931378,8.5877,116.47,116.43,41.58]
[1743771931690,9.0368,116.49,116.43,41.58]
[1743771932087,8.5891,116.45,116.43,41.58]
[1743771932587,0.06098572,116.45,116.43,41.63991887]
[1743771932790,0.06098572,116.45,116.43,50.23021887]
[1743771933192,0.06098572,116.45,116.43,41.63991887]
[1743771933789,8.5896,116.44,116.43,0.05991887]
[1743771933985,0.06098572,116.45,116.43,0.05991887]
[1743771934787,0.06098572,116.45,116.44,8.5896]
[1743771935091,0.06098572,116.45,116.43,0.05991887]
[1743771935788,0.06098572,116.45,116.44,8.5896]
[1743771936091,309.0,116.53,116.44,80.69026795]
[1743771936395,8.5826,116.54,116.51,8.5842]
[1743771936590,13.4125,116.56,116.5,41.58]
[1743771936788,8.6481,116.56,116.5,41.58]
[1743771937191,47.69956795,116.51,116.38,235.49939099]
[1743771937489,30.53026795,116.49,116.39,1.57751023]
[1743771937691,30.53026795,116.49,116.39,6.22961023]
[1743771937990,30.53026795,116.46,116.39,4.6521]
[1743771938186,41.58,116.45,116.39,4.6521]
[1743771938488,0.05995904,116.44,116.41,0.0549905]
[1743771939594,8.64985904,116.44,116.41,0.0549905]
[1743771939794,0.05995904,116.44,116.41,0.0549905]
[1743771940196,8.5911,116.42,116.41,0.0549905]
[1743771942496,8.5908,116.43,116.41,0.0549905]
[1743771942797,0.05995904,116.44,116.41,0.0549905]
[1743771942997,8.5911,116.42,116.41,0.0549905]
[1743771943597,0.05995904,116.44,116.41,0.0549905]
[1743771944003,30.59022699,116.44,116.41,0.0549905]
[1743771944296,8.5911,116.42,116.41,0.0549905]
[1743771946500,8.5945,116.38,116.31,30.53026795]
[1743771946705,30.53026795,116.4,116.32,47.52339028]
[1743771946896,30.53026795,116.4,116.33,8.5976]
[1743771947200,30.53026795,116.4,116.33,41.58]
[1743771947701,30.58655609,116.38,116.35,0.05875946]
[1743771947902,30.58655609,116.38,116.33,41.58]
[1743771948201,0.05628814,116.38,116.35,0.05586108]
[1743771949602,0.05628814,116.38,116.37,8.5948]
[1743771949900,0.05628814,116.38,116.37,50.1748]
[1743771951096,0.05628814,116.38,116.37,41.58]
[1743771951605,8.5952,116.37,116.35,0.05586108]
[1743771952104,0.05628814,116.38,116.35,0.05586108]
[1743771952698,8.5955,116.36,116.35,0.05586108]
[1743771952902,30.53026795,116.36,116.31,12.9036]
[1743771953105,30.53026795,116.36,116.31,41.58]
[1743771953303,30.53026795,116.36,116.31,50.1787]
[1743771953704,30.53026795,116.36,116.31,41.58]
[1743771954103,0.05974669,116.35,116.32,41.63545505]
[1743771954305,0.05974669,116.35,116.32,41.58]
[1743771954507,0.05974669,116.35,116.32,41.6409049]
[1743771955903,8.5974,116.34,116.32,41.6409049]
[1743771956105,0.05974669,116.35,116.32,41.6409049]
[1743771956307,0.05974669,116.35,116.33,8.5974]
[1743771956603,0.05974669,116.35,116.32,0.0609049]
[1743771957110,8.5977,116.33,116.32,0.0609049]
[1743771957708,8.5977,116.33,116.29,41.58]
[1743771957709,8.6002,116.3,116.28,41.58]
[1743771958210,30.53026795,116.32,116.24,41.58]
[1743771958411,30.53026795,116.32,116.25,9.2736]
[1743771958909,0.05927218,116.3,116.27,0.05735445]
[1743771959111,8.602,116.28,116.27,0.05735445]
[1743771959611,30.53026795,116.28,116.24,41.58]
[1743771960307,30.53026795,116.26,116.2,41.58]
[1743771960905,0.05771238,116.24,116.22,0.05496451]
[1743771961405,8.6051,116.23,116.22,0.05496451]
[1743771961612,30.58798033,116.24,116.17,529.87362973]
[1743771961817,8.6083,116.19,116.15,4.4915]
[1743771962013,54.43092423,116.23,116.16,41.58]
[1743771962211,8.6107,116.16,116.14,46.225]
[1743771962408,8.6107,116.16,116.11,285.41761522]
[1743771962409,49.91822423,116.19,116.11,244.82629099]
[1743771962712,49.91822423,116.21,116.12,43.16144684]
[1743771962912,0.06258796,116.16,116.14,0.06247974]
[1743771963314,8.6069,116.21,116.16,8.6099]
[1743771963509,4.5127,116.23,116.17,41.58]
[1743771963707,0.05898311,116.2,116.17,41.63508875]
[1743771964307,0.05898311,116.2,116.17,0.05508875]
[1743771964509,8.6085,116.19,116.17,0.05508875]
[1743771964707,0.05898311,116.2,116.17,0.05508875]
[1743771965610,8.6088,116.18,116.17,0.05508875]
[1743771966810,8.6087,116.19,116.17,0.05508875]
[1743771967014,9.19088311,116.2,116.17,0.05508875]
[1743771967314,8.6088,116.18,116.17,0.05508875]
[1743771967514,9.19088311,116.2,116.17,0.05508875]
[1743771967716,0.05898311,116.2,116.17,0.05508875]
[1743771969208,0.05898311,116.2,116.17,8.66428875]
[1743771969414,0.05898311,116.2,116.17,0.05508875]
[1743771969615,8.66678311,116.2,116.17,0.05508875]
[1743771969817,0.05898311,116.2,116.17,0.05508875]
[1743771970211,0.05898311,116.2,116.17,10.87440205]
[1743771970512,0.05898311,116.2,116.17,9.29318875]
[1743771970716,0.05898311,116.2,116.17,0.05508875]
[1743771971013,49.97720734,116.2,116.17,0.05508875]
[1743771971403,8.6088,116.18,116.17,0.05508875]
[1743771973216,8.6085,116.19,116.17,0.05508875]
[1743771973413,49.97720734,116.2,116.17,0.05508875]
[1743771973816,58.52702423,116.18,116.17,0.05508875]
[1743771974009,359.59822423,116.18,116.06,91.51822423]
[1743771974210,359.59822423,116.18,116.07,3.30507291]
[1743771974517,364.10612423,116.18,116.08,3.30493472]
[1743771974716,364.10612423,116.18,116.09,6.18268504]
[1743771974916,364.10612423,116.18,116.1,43.18198504]
[1743771975119,0.06305215,116.15,116.12,0.06249378]
[1743771976923,8.6125,116.13,116.12,0.06249378]
[1743771977321,49.91822423,116.14,116.08,1.72294968]
[1743771977516,8.6155,116.09,116.08,1.72294968]
[1743771979224,50.24,116.09,115.9,650.37423874]
[1743771979419,49.91822423,116.06,115.96,49.91822423]
[1743771979623,8.6183,116.06,116.01,8.6209]
[1743771979927,49.91822423,116.08,116.01,41.62]
[1743771980112,8.6221,116.01,115.98,41.62]
[1743771980318,49.91822423,116.04,115.99,1.58348589]
[1743771980622,8.6219,116.01,115.93,13.558]
[1743771980823,49.91822423,116.04,115.94,43.20379766]
[1743771981025,0.06464726,115.98,115.95,1.58379766]
[1743771981223,8.6196,116.04,115.96,49.91822423]
[1743771981416,4.6215,116.06,115.97,1.58379766]
[1743771981613,4.6215,116.06,116.0,8.6217]
[1743771981817,8.6194,116.04,116.0,8.6217]
[1743771982025,4.6215,116.06,116.01,1.5834024]
[1743771982223,41.62,116.09,116.02,41.64]
[1743771982419,0.057917,116.05,116.02,41.70464726]
[1743771982619,0.057917,116.05,116.03,1.58304083]
[1743771982815,0.057917,116.05,116.04,8.6192]
[1743771983016,8.6159,116.09,116.04,1.58304083]
[1743771983222,351.58,116.12,116.05,1.58304083]
[1743771983223,382.38194641,116.12,116.05,1.58304083]
[1743771983418,8.6163,116.08,116.03,1.58304083]
[1743771983724,8.6163,116.08,116.04,10.20164313]
[1743771983926,340.74194641,116.12,116.05,1.58284313]
[1743771984222,9.262,116.13,116.06,51.84024313]
[1743771984428,8.6166,116.08,116.06,41.64]
[1743771984623,30.80194641,116.12,116.06,41.64]
[1743771984926,8.6167,116.08,116.06,41.64]
[1743771985228,30.80194641,116.1,116.03,41.64]
[1743771985427,30.85659696,116.08,116.06,0.06168038]
[1743771985728,30.80194641,116.08,116.04,1.58296376]
[1743771985928,30.85961244,116.08,116.06,0.06111336]
[1743771986227,0.05766603,116.08,116.06,0.06111336]
[1743771987222,8.617,116.07,116.06,0.06111336]
[1743771987829,8.67426603,116.08,116.06,0.06111336]
[1743771988024,0.05766603,116.08,116.06,0.06111336]
[1743771988426,8.617,116.07,116.06,0.06111336]
[1743771988928,30.80194641,116.07,115.99,9.01]
[1743771989123,44.15864641,116.07,116.0,1.58329008]
[1743771989328,8.621,116.02,116.0,1.58329008]
[1743771989525,30.80194641,116.05,116.0,1.58329008]
[1743771989932,30.80194641,116.05,116.0,10.20509008]
[1743771989933,8.6196,116.04,116.0,10.20509008]
[1743771990134,8.683033,116.04,116.01,1.64866539]
[1743771990329,8.683033,116.04,116.01,0.06537531]
[1743771990526,8.6202,116.03,116.01,1.64874408]
[1743771990730,0.063433,116.04,116.01,1.64874408]
[1743771991631,8.683133,116.04,116.01,1.64874408]
[1743771991831,0.063433,116.04,116.01,10.26994408]
[1743771992034,8.683033,116.04,116.02,1.58333772]
[1743771992235,0.063433,116.04,116.01,1.64874064]
[1743771992531,8.6207,116.02,116.01,0.06537531]
[1743771995934,0.063433,116.04,116.01,0.06537531]
[1743771997240,4.679433,116.04,116.01,0.06537531]
[1743771998539,0.063433,116.04,116.01,8.68647531]
[1743771998741,0.063433,116.04,116.01,0.06537531]
[1743771999641,0.063433,116.04,116.01,41.68537531]
[1743772001341,0.063433,116.04,116.01,50.30607531]
[1743772001342,8.683033,116.04,116.01,50.30607531]
[1743772001735,0.063433,116.04,116.01,41.68537531]
[1743772001940,8.6207,116.02,116.01,41.68537531]
[1743772002945,0.063433,116.04,116.01,41.68537531]
[1743772003146,0.063433,116.04,116.01,0.06537531]
[1743772003451,30.80194641,116.03,116.01,7.531e-05]
[1743772003652,35.44524641,116.03,116.01,7.531e-05]
[1743772004051,8.6207,116.02,116.01,7.531e-05]
[1743772007452,8.6207,116.02,115.94,41.62]
[1743772007453,8.6254,115.96,115.95,43.20411087]
[1743772007952,8.6254,115.96,115.95,43.20422831]
[1743772008154,8.6248,115.97,115.95,41.62]
[1743772008556,8.68621986,115.97,115.95,41.67215639]
[1743772008757,8.6252,115.96,115.95,41.67215639]
[1743772008951,8.6252,115.96,115.95,0.05215639]
[1743772009254,8.6271,115.94,115.88,1.58450794]
[1743772009454,30.80194641,115.98,115.89,44.93024374]
[1743772009644,8.6252,115.96,115.93,8.627]
[1743772009844,72.42194641,116.0,115.94,1.5844693]
[1743772010049,72.42194641,116.0,115.93,41.62]
[1743772010244,8.6252,115.96,115.93,50.247]
[1743772010445,72.42194641,116.0,115.93,41.62]
[1743772010655,0.05895652,115.96,115.93,41.62]
[1743772011256,0.05895652,115.96,115.92,41.62]
[1743772011652,0.05895652,115.96,115.95,8.6259]
[1743772011854,0.05895652,115.96,115.95,10.21017652]
[1743772012052,0.05895652,115.96,115.93,9.3763]
[1743772012357,0.05895652,115.96,115.94,1.58415693]
[1743772012552,0.05895652,115.96,115.93,9.3763]
[1743772013356,0.05895652,115.96,115.93,18.0032]
[1743772013657,0.05895652,115.96,115.93,9.3763]
[1743772013856,0.05895652,115.96,115.95,8.6259]
[1743772014559,0.05895652,115.96,115.94,8.6262]
[1743772014753,0.05895652,115.96,115.93,9.3763]
[1743772015456,0.05895652,115.96,115.93,18.0033]
[1743772015659,0.05895652,115.96,115.93,9.3763]
[1743772016057,0.05895652,115.96,115.94,8.6262]
[1743772016258,0.05895652,115.96,115.92,41.62]
[1743772016457,0.05895652,115.96,115.92,50.2476]
[1743772016659,8.6269,115.94,115.91,41.62]
[1743772016860,30.86090293,115.96,115.91,41.62]
[1743772017055,30.80194641,115.96,115.91,50.2485]
[1743772017260,8.6269,115.94,115.91,50.2485]
[1743772017461,0.05988911,115.95,115.91,50.2485]
[1743772017861,8.68618911,115.95,115.91,50.2485]
[1743772018160,0.05988911,115.95,115.9,8.6293]
[1743772018350,30.80194641,115.96,115.9,50.2493]
[1743772018556,0.05717887,115.94,115.9,50.2493]
[1743772019161,8.6278,115.93,115.9,8.6293]
[1743772019358,0.05717887,115.94,115.91,8.6287]
[1743772020163,0.05717887,115.94,115.9,8.629]
[1743772020364,8.68427887,115.94,115.89,41.62]
[1743772020566,8.68427887,115.94,115.9,1.58467007]
[1743772020761,0.05717887,115.94,115.89,50.2501]
[1743772021564,0.05717887,115.94,115.89,41.62]
[1743772022466,8.6282,115.92,115.89,41.62]
[1743772022663,0.05717887,115.94,115.9,8.6296]
[1743772022857,0.0660714,115.92,115.89,41.62]
[1743772023263,0.0660714,115.92,115.88,46.3521]
[1743772023469,0.0660714,115.92,115.86,4.3039]
[1743772023667,8.6293,115.91,115.88,41.62]
[1743772023869,8.6293,115.91,115.87,50.2515]
[1743772024267,8.6306,115.89,115.86,4.3039]
[1743772024465,30.80194641,115.94,115.85,4.6944]
[1743772024764,0.05958429,115.89,115.86,41.62]
[1743772025163,0.05958429,115.89,115.85,4.6944]
[1743772025363,0.05958429,115.89,115.87,8.6315]
[1743772025567,0.05958429,115.89,115.86,43.2052146]
[1743772025763,0.05958429,115.89,115.86,74.00716101]
[1743772025965,13.542,115.95,115.87,1.58505913]
[1743772026269,8.6286,115.92,115.87,6.27215913]
[1743772026569,13.542,115.95,115.88,1.58497737]
[1743772026769,8.6278,115.93,115.88,1.58497737]
[1743772026971,13.542,115.95,115.9,8.6296]
[1743772027168,0.0648592,115.92,115.89,0.05958429]
[1743772027364,0.0648592,115.92,115.88,1.5849774]
[1743772027563,30.86680561,115.92,115.89,0.05958429]
[1743772027760,8.6315,115.88,115.82,30.80194641]
[1743772027964,30.86680561,115.92,115.84,8.6337]
[1743772027965,30.80194641,115.9,115.84,8.6337]
[1743772028171,30.80194641,115.9,115.82,41.62]
[1743772028368,8.6337,115.85,115.8,4.6871]
[1743772028566,8.6337,115.85,115.81,8.6357]
[1743772028867,30.80194641,115.86,115.8,41.62]
[1743772029073,0.05822758,115.84,115.77,235.49939099]
[1743772029266,30.80194641,115.84,115.77,235.49939099]
[1743772029460,72.42194641,115.84,115.75,285.75979099]
[1743772029664,30.85825713,115.82,115.76,1.58660386]
[1743772029972,8.6393,115.77,115.75,235.49939099]
[1743772030168,30.80194641,115.8,115.75,235.49939099]
[1743772030470,8.6401,115.76,115.75,235.49939099]
[1743772030774,0.05924706,115.77,115.75,235.49939099]
[1743772030966,8.6401,115.76,115.75,235.49939099]
[1743772031570,0.05924706,115.77,115.75,235.49939099]
[1743772031976,30.80194641,115.76,115.74,294.37423874]
[1743772032167,8.6408,115.75,115.74,294.37423874]
[1743772032367,0.05924706,115.77,115.74,294.37423874]
[1743772032869,0.05924706,115.77,115.74,303.01563874]
[1743772033070,0.05924706,115.77,115.74,294.37423874]
[1743772033273,8.69924706,115.77,115.71,41.64]
[1743772033466,0.05924706,115.77,115.71,41.64]
[1743772034375,8.6402,115.76,115.71,41.64]
[1743772034674,30.80194641,115.72,115.62,41.62]
[1743772034874,30.80194641,115.7,115.63,12.4644369]
[1743772035172,0.06387992,115.68,115.64,1.72950536]
[1743772035380,8.6425,115.73,115.65,1.58805932]
[1743772035581,8.6425,115.73,115.66,72.42194641]
[1743772035877,30.80194641,115.77,115.67,1.58805932]
[1743772036177,30.80194641,115.77,115.68,4.7417]
[1743772036373,8.70312586,115.74,115.69,4.736]
[1743772036572,0.06112586,115.74,115.71,0.06252062]
[1743772037477,0.06112586,115.74,115.71,1.64991693]
[1743772038176,8.6395,115.77,115.71,1.64991693]
[1743772038474,30.80194641,115.79,115.71,1.58739631]
[1743772038674,8.6404,115.76,115.71,1.58739631]
[1743772038871,8.6404,115.76,115.72,8.6426]
[1743772039069,1.2864,115.83,115.74,30.80194641]
[1743772039273,30.80194641,115.84,115.75,50.5574]
[1743772039471,0.06344539,115.8,115.75,50.5574]
[1743772039677,77.90182459,115.86,115.78,0.06456902]
[1743772039980,77.90182459,115.86,115.79,41.64]
[1743772040376,8.636,115.82,115.79,41.64]
[1743772040677,77.90182459,115.86,115.79,41.64]
[1743772040977,0.05498439,115.82,115.79,41.69497076]
[1743772041178,47.09987818,115.86,115.79,41.64]
[1743772041374,8.635,115.83,115.79,50.2774]
[1743772041678,47.09987818,115.86,115.79,41.64]
[1743772041875,30.80194641,115.9,115.8,30.80194641]
[1743772042276,383.20194641,115.92,115.84,0.06616158]
[1743772042478,0.05784912,115.86,115.85,41.64]
[1743772042779,0.06024942,115.87,115.85,41.64]
[1743772043180,341.56194641,115.92,115.85,41.64]
[1743772043373,0.06622915,115.87,115.85,41.69977721]
[1743772043570,8.6326,115.86,115.85,41.64]
[1743772043770,8.6326,115.86,115.85,41.69663136]
[1743772045079,0.05455244,115.87,115.85,41.69663136]
[1743772046581,8.68685244,115.87,115.85,41.69663136]
[1743772047076,8.6326,115.86,115.85,41.69663136]
[1743772047477,0.05455244,115.87,115.85,41.69663136]
[1743772048677,0.05455244,115.87,115.85,50.32983136]
[1743772048881,8.68645244,115.87,115.85,41.69663136]